{"text_format":"1","workbook":"xlsx","n_sheets":9,"sheets":["SKUPNA","REKAPITULACIJA","1. PREDDELA","2. ZEMELJSKA DELA","3. VOZIŠČNE KONSTRUKCIJE","4. ODVODNJAVANJE","5. GRADBENA IN OBRTNIŠKA DELA","6. OPREMA CEST","7. TUJE STORITVE"],"not_rendered":{"charts":0,"images":0,"macros":1,"external_links":3,"defined_names":83,"comments":0,"pivot_tables":0},"unopened":[],"bounds":{"document_bytes":16777216,"sheet_cells":100000,"rows_first":2000,"rows_last":500,"rows_between":2000,"halvings":0,"cell_chars":16384,"cell_head_chars":4096},"cells_cut":0,"cells_raw":0,"read":"whole","date_system":"1900"}

{"sheet":"SKUPNA","index":0,"n_rows":16,"n_cols":5,"rows_kept":16,"cut":false,"hidden":false,"merged":[]}
[]
[]
[]
[null,"SKUPNA REKAPITULACIJA"]
[]
[null,"1.","GRADBENA DELA - PARKIRIŠČE",null,{"$f":"REKAPITULACIJA!H38","v":0}]
[null,"2.","PODPORNI ZIDOVI",null,{"$f":"[1]Popis!$G$81","v":0}]
[null,"3.","NN in JR",null,{"$f":"'[2]1.FAZA'!$H$25","v":0}]
[null,"4.","EKOLOŠKI OTOK",null,{"$f":"'[3]popis eko otok'!$F$19","v":0}]
[null,null,"Skupaj",null,{"$f":"E6+E7+E8+E9","v":0}]
[null,null,"DDV 22%",null,{"$f":"E10*0.22","v":0}]
[]
[null,null,"VSE SKUPAJ",null,{"$f":"E10+E11","v":0}]
[]
[]
[null,"Opomba:","Ponudnik mora preveriti vse postavke!"]

{"sheet":"REKAPITULACIJA","index":1,"n_rows":48,"n_cols":8,"rows_kept":48,"cut":false,"hidden":false,"merged":[[47,1,47,4],[8,4,8,7]]}
[]
[]
[]
[]
[]
[]
[]
[]
[null,null,"Številka načrta:",null,"1054-15"]
[]
[null,null,"Projekt :",null,"Parkirišče Vipavski križ-POPIS DEL"]
[]
[null,null,"Del objekta:"]
[]
[]
[]
[null,null,"REKAPITULACIJA  GRADBENIH STROŠKOV"]
[]
[]
[]
[null,null,"1.    PREDDELA",null,null,null,null,{"$f":"'1. PREDDELA'!F31","v":""}]
[]
[null,null,"2.    ZEMELJSKA DELA",null,null,null,null,{"$f":"'2. ZEMELJSKA DELA'!F41","v":""}]
[]
[null,null,"3.    VOZIŠČNE KONSTRUKCIJE",null,null,null,null,{"$f":"'3. VOZIŠČNE KONSTRUKCIJE'!F46","v":""}]
[]
[null,null,"4.    ODVODNJAVANJE",null,null,null,null,{"$f":"'4. ODVODNJAVANJE'!F24","v":""}]
[]
[null,null,"5.    GRADBENA IN OBRTNIŠKA DELA",null,null,null,null,{"$f":"'5. GRADBENA IN OBRTNIŠKA DELA'!F7","v":""}]
[]
[null,null,"6.    OPREMA CEST",null,null,null,null,{"$f":"'6. OPREMA CEST'!F18","v":""}]
[]
[null,null,"7.    TUJE STORITVE",null,null,null,null,{"$f":"'7. TUJE STORITVE'!F23","v":""}]
[]
[null,null,"8.    NEPREDVIDENA DELA 5%"]
[]
[]
[null,null,null,null,null,"skupaj"]
[]
[null,null,null,null,null,"22 % DDV"]
[]
[]
[null,null,"S K U P A J                    "]
[]
[]
[]
[]
[null,"vrednosti v postavkah množi  s faktorjem ",null,null,null,1]

{"sheet":"1. PREDDELA","index":2,"n_rows":31,"n_cols":9,"rows_kept":31,"cut":false,"hidden":false,"merged":[[30,5,30,6],[3,1,3,6],[5,1,5,3],[12,1,12,3],[13,1,13,3],[18,1,18,3],[23,1,23,3]]}
[]
[null,"šifra","enota","opis dela","količina","cena","znesek",null,"TUKAJ VNESI CENE!!!"]
[]
[null,"1.   PREDDELA"]
[null,null,null,null,{"$f":"IF(SUM(E8:E11)=0,0,\"\")","v":""}]
[null,"1.1 Geodetska dela",null,null,{"$f":"IF(SUM(E8:E11)=0,0,\"\")","v":""}]
[null,null,null,null,{"$f":"IF(SUM(E8:E11)=0,0,\"\")","v":""}]
[null,"11 123","km","Obnova in zavarovanje zakoličbe osi trase ostale  ceste v hribovitem terenu\n*os dostopne ceste na parkirišču",0.1,null,null,null,5000]
[null,"11 132","km","Obnova in zavarovanje zakoličbe trase komunalnih vodov v gričevnatem terenu\n",0.2,null,null,null,0]
[null,"11 233","kos","Postavitev in zavarovanje prečnega profila za komunalne vode v hribovitem terenu\n*meteorna kanalizacija(1 profil na 10m)",7,null,null,null,5.54]
[null,"11 313","kos","Postavitev in zavarovanje profilov za zakoličbo objekta s površino nad  500 m2\n",10,null,null,null,100]
[]
[null,"1.2  Čiščenje terena"]
[null,"1.2.1 Odstranitev grmovja, dreves, vej in panjev"]
[null,null,null,null,{"$f":"IF(SUM(E16:E17)=0,0,\"\")","v":""}]
[null,"12 153","kos","Posek in odstranitev drevesa z deblom premera nad 50 cm ter odstranitev vej\n",27,null,null,null,81]
[null,"12 169","kos","Odstranitev panja s premerom nad 50 cm z odvozom na deponijo na razdaljo nad 1000 m\n",27,null,null,null,78]
[null,null,null,null,{"$f":"IF(SUM(E21:E22)=0,0,\"\")","v":""}]
[null,"1.2.3 Porušitev in odstranitev voziščnih konstrukcij",null,null,{"$f":"IF(SUM(E21:E22)=0,0,\"\")","v":""}]
[null,null,null,null,{"$f":"IF(SUM(E21:E22)=0,0,\"\")","v":""}]
[null,"12 322","m2","Porušitev in odstranitev asfaltne plasti v debelini 6 do 10 cm\n",250,null,null,null,4.1500000000000004]
[null,"12 382","m1","Rezanje asfaltne plasti s talno diamantno žago, debele 6 do 10 cm\n",130,null,null,null,4.5]
[null,null,null,null,{"$f":"IF(SUM(E26:E27)=0,0,\"\")","v":""}]
[null,"1.2.4 Porušitev in odstranitev objektov",null,null,{"$f":"IF(SUM(E26:E27)=0,0,\"\")","v":""}]
[null,null,null,null,{"$f":"IF(SUM(E26:E27)=0,0,\"\")","v":""}]
[null,"12 432","m1","Porušitev in odstranitev jaška z notranjo stranico/premerom 61 do 100 cm\n",1,null,null,null,15]
[null,"12 473","m3","Porušitev in odstranitev zidu iz kamna v suhi malti\n*ekološki otok",{"$f":"12.5*0.5*1.5+0.5*3*3","v":13.875},null,null,null,1]
[null,"13 142","dan","Zavarovanje gradbišča v času gradnje z zaporo skladno z elaboratom začasne ureditve\n",21,null,null,null,50]
[null,"13 143","kos","Izdelava elaborata začasne ureditve prometa v času gradnje",1,null,null,null,750]
[]
[null,null,null,"SKUPAJ PREDDELA:",null,{"$f":"IF(SUM(G8:G29)=0,\"\",SUM(G8:G29))","v":""}]

{"sheet":"2. ZEMELJSKA DELA","index":3,"n_rows":41,"n_cols":9,"rows_kept":41,"cut":false,"hidden":false,"merged":[[3,1,3,6],[5,1,5,3],[11,1,11,3],[15,1,15,3],[40,5,40,6],[19,1,19,3],[27,1,27,3],[32,1,32,3]]}
[]
[null,"šifra","enota","opis dela","količina","cena","znesek",null,"TUKAJ VNESI CENE!!!"]
[]
[null,"2.   ZEMELJSKA DELA"]
[null,null,null,null,{"$f":"IF(SUM(E8:E10)=0,0,\"\")","v":""}]
[null,"2.1  Izkopi",null,null,{"$f":"IF(SUM(E8:E10)=0,0,\"\")","v":""}]
[null,null,null,null,{"$f":"IF(SUM(E8:E10)=0,0,\"\")","v":""}]
[null,"21 114","m3","Površinski izkop plodne zemljine – 1. kategorije – strojno z nakladanjem\n",{"$f":"2160*1.2*0.15","v":388.8},null,null,null,1.9]
[null,"21 241","m3","Široki izkop mehke kamnine – 4. kategorije – strojno z odrivom do 50 m\n",2230,null,null,null,9.02]
[null,"21 324","m3","Izkop vezljive zemljine/zrnate kamnine – 3. kategorije za temelje, kanalske rove, prepuste, jaške in drenaže, širine do 1,0 m in globine 1,1 do 2,0 m – strojno, planiranje dna ročno\n*izkop za:\n- meteorni kanal\n- cestne požiralnike\n-revizijske jaške\n-lovilec olj\n",{"$f":"92*1*1+66*1*2+6*1*1*2+6*2*2","v":260},null,null,null,11.33]
[null,null,null,null,{"$f":"IF(SUM(E14:E14)=0,0,\"\")","v":""}]
[null,"2.2  Planum temeljnih tal",null,null,{"$f":"IF(SUM(E14:E14)=0,0,\"\")","v":""}]
[]
[null,"22 114","m2","Ureditev planuma temeljnih tal mehke kamnine – 4. kategorije\n",1550,null,null,null,1.5]
[null,null,null,null,{"$f":"IF(SUM(E18:E18)=0,0,\"\")","v":""}]
[null,"2.3  Ločilne, drenažne in filtrske plasti ter delovni plato",null,null,{"$f":"IF(SUM(E18:E18)=0,0,\"\")","v":""}]
[null,null,null,null,{"$f":"IF(SUM(E18:E18)=0,0,\"\")","v":""}]
[null,"23 311","m2","Dobava in vgraditev geotekstilije za ločilno plast (po načrtu), natezna trdnost do 12 kN/m2\n",{"$f":"520+575","v":1095},null,null,null,1.3]
[null,null,null,null,{"$f":"IF(SUM(E22:E25)=0,0,\"\")","v":""}]
[null,"2.4  Nasipi, zasipi, klini, posteljica in glinasti naboj",null,null,{"$f":"IF(SUM(E22:E25)=0,0,\"\")","v":""}]
[null,null,null,null,{"$f":"IF(SUM(E22:E25)=0,0,\"\")","v":""}]
[null,"24 214","m3","Zasip z zrnato kamnino – 3. kategorije - strojno (zasip kanalizacijskih cevinad prekrivno cono do grede)",{"$f":"66*1*0.7","v":46.199999999999996},null,null,null,20]
[null,"24 215","m3","Zasip z mehko kamnino – 4. kategorije\n(za zasip ob zidu, uporabi se izkopan material)\n*nabijanje v slojih po 30cm",{"$f":"705","v":705},null,null,null,15]
[null,"24 441","m3","Vgraditev posteljice v debelini plasti do 40 cm iz zrnate kamnine – 3. kategorije \n*parkirišče in območje kanalizacije pod cesto\n",{"$f":"7*80+120*0.4","v":608},null,null,null,19]
[null,"24 612","m2","Ureditev planuma nasipa, zasipa, klina ali posteljice iz zrnate kamnine – 3. kategorije\n",1400,null,null,null,2.2000000000000002]
[null,"24 642","m3","Izdelava posteljice in obsipa cevi meteorne kanalizacije\niz material zrnavosti 0-8mm oz. skladno z navodili proizvajalca cevi\n*do 30cm nad teme cevi",{"$f":"66*1*0.6","v":39.6}]
[null,null,null,null,{"$f":"IF(SUM(E30:E31)=0,0,\"\")","v":""}]
[null,"2.5  Brežine in zelenice",null,null,{"$f":"IF(SUM(E30:E31)=0,0,\"\")","v":""}]
[null,null,null,null,{"$f":"IF(SUM(E30:E31)=0,0,\"\")","v":""}]
[null,"25 142","m2","Humusiranje zelenice z valjanjem, v debelini do 15 cm - strojno\n(uporaba deponiranega humusa z gradbišča)\n",{"$f":"780","v":780},null,null,null,2.5]
[null,"25 151","m2","Doplačilo za zatravitev s semenom",{"$f":"E30","v":780},null,null,null,0.5]
[null,null,null,null,{"$f":"IF(SUM(E35:E39)=0,0,\"\")","v":""}]
[null,"2.9  Prevozi, razprostiranje in ureditev deponij materiala",null,null,{"$f":"IF(SUM(E35:E39)=0,0,\"\")","v":""}]
[null,null,null,null,{"$f":"IF(SUM(E35:E39)=0,0,\"\")","v":""}]
[null,"29 118","t","Prevoz materiala na razdaljo nad 7000 do 10000 m",{"$f":"E36+E37+E38+E39","v":3111.2719999999999},null,null,null,10]
[null,"29 151","t","Odlaganje odpadne zemljine",{"$f":"(E8-E30*0.15)*1.7","v":462.06},null,null,null,2.5]
[null,"29 152","t","Odlaganje odpadne zmesi zemljine in kamnine na komunalno deponijo, vključno z plačilom komunalne takse\n",{"$f":"(E9-E23)*1.7","v":2592.5},null,null,null,3.7]
[null,"29 153","t","Odlaganje odpadnega asfalta na komunalno deponijo,vključno z plačilom komunalne takse",{"$f":"130*0.1*1.8","v":23.400000000000002},null,null,null,12.5]
[null,"29 154","t","Odlaganje odpadnega cementnega betona na komunalno deponijo\n",{"$f":"13.88*2.4","v":33.311999999999998},null,null,null,12.5]
[]
[null,null,null,"SKUPAJ ZEMELJSKA DELA:",null,{"$f":"IF(SUM(G8:G39)=0,\"\",SUM(G8:G39))","v":""}]

{"sheet":"3. VOZIŠČNE KONSTRUKCIJE","index":4,"n_rows":46,"n_cols":10,"rows_kept":46,"cut":false,"hidden":false,"merged":[[45,5,45,6],[25,1,25,3],[31,1,31,3],[35,1,35,3],[41,1,41,3],[37,1,37,3],[20,1,20,3],[3,1,3,6],[5,1,5,3],[6,1,6,3],[18,1,18,3],[14,1,14,3]]}
[]
[null,"šifra","enota","opis dela","količina","cena","znesek",null,"TUKAJ VNESI CENE!!!"]
[]
[null,"3.   VOZIŠČNE KONSTRUKCIJE"]
[]
[null,"3.1  Nosilne plasti"]
[null,"3.1.1 Nevezane nosilne plasti",null,null,{"$f":"IF(SUM(E9:E11)=0,0,\"\")","v":""}]
[null,null,null,null,{"$f":"IF(SUM(E9:E11)=0,0,\"\")","v":""}]
[null,"31 121","m3","Izdelava nevezane nosilne plasti prodca v debelini do 20 cm\n*pod travnimi rešetkami v sestavi 30%humus, 70%gramoz\n*po navodilih proizvajalca",{"$f":"3.7*70","v":259},null,null,null,17]
[null,"31 131","m3","Izdelava nevezane nosilne plasti enakomerno zrnatega drobljenca iz kamnine v debelini do 20 cm \n*dovozna cesta parkirišča\n",140,null,null,null,17.100000000000001]
[null,"31 181","m3","Izdelava izravnalne plasti iz drobljenca v povprečni debelini do 5 cm  \n*dovozna cesta  parkirišča",{"$f":"700*0.05","v":35},null,null,null,5]
[null,"31 186","m3","Izdelava izravnalne plasti iz finega kremenčevega peska v povprečni debelini do 5 cm \n*parkirišča (sestava izkremenovega peska, drobirja, zemlj+gnojilo)\n*po navodilih proizvajalca travnih rešetk \n",{"$f":"640*0.1","v":64},null,null,null,5]
[]
[null,null,null,null,{"$f":"IF(SUM(E17:E17)=0,0,\"\")","v":""}]
[null,"3.1.4-6 Asfaltne nosilne plasti - Asphalt concrete - base (AC base)",null,null,{"$f":"IF(SUM(E17:E17)=0,0,\"\")","v":""}]
[null,null,null,null,{"$f":"IF(SUM(E17:E17)=0,0,\"\")","v":""}]
[null,"31 452","m2","Izdelava nosilne plasti bituminizirane zmesi AC 16 base B 50/70 A4 v debelini 5 cm\n",700,null,null,null,11]
[]
[null,"3.2  Obrabne plasti"]
[]
[null,"3.2.2 Asfaltne obrabne in zaporne plasti - bitumenski betoni - Asphalt concrete - surface (AC surf)",null,null,{"$f":"IF(SUM(E23:E24)=0,0,\"\")","v":""}]
[null,null,null,null,{"$f":"IF(SUM(E23:E24)=0,0,\"\")","v":""}]
[null,"32 247","m2","Izdelava obrabne in zaporne plasti bituminizirane zmesi AC 8 surf B 70/100 A4 v debelini 3,0 cm\n",{"$f":"E17","v":700},null,null,null,10]
[null,"32 257","m2","Doplačilo za izdelavo mulde v širini 50cm\nin minimalni globini 5cm (asfalt upoštevan v zgornjih postavkah)",{"$f":"0.5*83","v":41.5},null,null,null,3]
[null,null,null,null,{"$f":"IF(SUM(E28:E30)=0,0,\"\")","v":""}]
[null,"3.2.4 Asfaltne obrabne in zaporne plasti - površinske prevleke - Surface dressing (SD)",null,null,{"$f":"IF(SUM(E28:E30)=0,0,\"\")","v":""}]
[null,null,null,null,{"$f":"IF(SUM(E28:E30)=0,0,\"\")","v":""}]
[null,"32 490","m2","Čiščenje utrjene/odrezkane površine podlage pred pobrizgom z bitumenskim vezivom",{"$f":"120*0.25","v":30},null,null,null,0.25]
[null,"32 497","m2","Pobrizg s polimerno bitumensko emulzijo 0,31 do 0,50 kg/m2\n",{"$f":"E28","v":30},null,null,null,3]
[null,"32 500","m1","Premaz stikov z dilaplastom",120,null,null,null,3.5]
[null,null,null,null,{"$f":"IF(SUM(E34:E34)=0,0,\"\")","v":""}]
[null,"3.4  Tlakovane obrabne plasti",null,null,{"$f":"IF(SUM(E34:E34)=0,0,\"\")","v":""}]
[null,null,null,null,{"$f":"IF(SUM(E34:E34)=0,0,\"\")","v":""}]
[null,"34 824","m2","Dobava in vgradnja  travnih rešetk (kot naprimer Hauraton, Salvaverde ali podobno), po detajlu proizvajalca oz. na pripravljeno podlago, zasutje s humusom, kompostom in rastlinsko zemljo ter posejanjem trave (parkirišče)\n\n",640,null,null,null,18.5,"cena travnih rešetk cca. 13,35€/m2 brez DDV"]
[]
[null,"3.5  Robni elementi vozišč"]
[null,null,null,null,{"$f":"IF(SUM(E40:E40)=0,0,\"\")","v":""}]
[null,"3.5.2 Robniki",null,null,{"$f":"IF(SUM(E40:E40)=0,0,\"\")","v":""}]
[null,null,null,null,{"$f":"IF(SUM(E40:E40)=0,0,\"\")","v":""}]
[null,"35 214","m1","Dobava in vgraditev predfabriciranega dvignjenega robnika iz cementnega betona s prerezom 15/25 cm\n",160,null,null,null,13.5]
[null,null,null,null,{"$f":"IF(SUM(E44:E44)=0,0,\"\")","v":""}]
[null,"3.5.3 Obrobe",null,null,{"$f":"IF(SUM(E44:E44)=0,0,\"\")","v":""}]
[null,null,null,null,{"$f":"IF(SUM(E44:E44)=0,0,\"\")","v":""}]
[null,"35 313","m1","Izdelava obrobe iz malih tlakovcev iz naravnega kamna velikosti 10 cm/10 cm /10 cm\n",{"$f":"390+74+64","v":528},null,null,null,15]
[]
[null,null,null,"SKUPAJ VOZIŠČNE KONSTRUKCIJE:",null,{"$f":"IF(SUM(G9:G44)=0,\"\",SUM(G9:G44))","v":""}]

{"sheet":"4. ODVODNJAVANJE","index":5,"n_rows":24,"n_cols":11,"rows_kept":24,"cut":false,"hidden":false,"merged":[[3,1,3,6],[23,5,23,6],[5,1,5,3],[13,1,13,3]]}
[]
[null,"šifra","enota","opis dela","količina","cena","znesek",null,"TUKAJ VNESI CENE!!!"]
[]
[null,"4.   ODVODNJAVANJE"]
[null,null,null,null,{"$f":"IF(SUM(E8:E12)=0,0,\"\")","v":""}]
[null,"4.3  Globinsko odvodnjavanje - kanalizacija",null,null,{"$f":"IF(SUM(E8:E12)=0,0,\"\")","v":""}]
[null,null,null,null,{"$f":"IF(SUM(E8:E12)=0,0,\"\")","v":""}]
[null,"43 222","m1","Izdelava kanalizacije iz cevi iz polivinilklorida, vključno s podložno plastjo iz zmesi kamnitih zrn, premera 20 cm, v globini do 1,0 m\n",70,null,null,null,26.36]
[null,"43 232","m1","Izdelava kanalizacije iz cevi iz polivinilklorida, vključno s podložno plastjo iz cementnega betona, premera 20 cm, v globini do 1,0 m (PVC DN 200 drenažno kanalizacijska cev)\n",80,null,null,null,25.6]
[null,"43 511","m1","Doplačilo za izdelavo kanalizacije v globini 1,1 do 2 m s cevmi premera do 30 cm \n",80,null,null,null,0]
[null,"43 832","m1","Preskus tesnosti cevi premera 21 do 50 cm",80,null,null,null,2.2999999999999998]
[null,"43 841","m1","Pregled vgrajenih cevi s TV kamero",80,null,null,null,2.2000000000000002,null,"pregled vseh vgrajenih cevi"]
[null,null,null,null,{"$f":"IF(SUM(E16:E22)=0,0,\"\")","v":""}]
[null,"4.4  Jaški",null,null,{"$f":"IF(SUM(E16:E22)=0,0,\"\")","v":""}]
[null,null,null,null,{"$f":"IF(SUM(E16:E22)=0,0,\"\")","v":""}]
[null,"44 132","kos","Izdelava jaška iz cementnega betona, krožnega prereza s premerom 50 cm, globokega do 1,5 m\n",7,null,null,null,175]
[null,"44 163","kos","Izdelava jaška iz cementnega betona, krožnega prereza s premerom 80 cm, globokega 1,5 do 2,0 m \n",6,null,null,null,215]
[null,"44 855","kos","Dobava in vgraditev rešetke iz duktilne litine z nosilnostjo 400 kN, s prerezom 500/500 mm\n",6,null,null,null,170]
[null,"44 889","kos","Dobava in vgraditev koalescentnnega lovilnika odpadnih voda iz poliestra, ali enakovrednega materiala z baypassom skladno s SIST EN 858-2,  Q ≥ 20 l/s",1,null,null,null,4600,null,"lovilec olj, nabavna cena 2700 eur"]
[null,"44 951","kos","Dobava in vgraditev pokrova iz duktilne litine z nosilnostjo 125 kN, krožnega prereza s premerom 500 mm",1,null,null,null,168.8]
[null,"44 972","kos","Dobava in vgraditev pokrova iz duktilne litine z nosilnostjo 400 kN, krožnega prereza s premerom 600 mm",6,null,null,null,286.8]
[null,"44 994","kos","Izdelava priključka  na vtočni jašek meteornega kanala komplet z obbetoniranjem in vrtanjem  v stene jaška \n",1,null,null,null,25]
[]
[null,null,null,"SKUPAJ ODVODNJAVANJE:",null,{"$f":"IF(SUM(G5:G22)=0,\"\",SUM(G5:G22))","v":""}]

{"sheet":"5. GRADBENA IN OBRTNIŠKA DELA","index":6,"n_rows":7,"n_cols":9,"rows_kept":7,"cut":false,"hidden":false,"merged":[[6,5,6,6],[3,1,3,6]]}
[]
[null,"šifra","enota","opis dela","količina","cena","znesek",null,"TUKAJ VNESI CENE!!!"]
[]
[null,"5.   GRADBENA IN OBRTNIŠKA DELA"]
[]
[]
[null,null,null,"SKUPAJ GRADBENA IN OBRTNIŠKA DELA:",null,{"$f":"IF(SUM(G5:G5)=0,\"\",SUM(G5:G5))","v":""}]

{"sheet":"6. OPREMA CEST","index":7,"n_rows":18,"n_cols":11,"rows_kept":18,"cut":false,"hidden":false,"merged":[[17,5,17,6],[3,1,3,6],[5,1,5,3],[12,1,12,3]]}
[]
[null,"šifra","enota","opis dela","količina","cena","znesek",null,"TUKAJ VNESI CENE!!!"]
[]
[null,"6.   OPREMA CEST"]
[null,null,null,null,{"$f":"IF(SUM(E8:E11)=0,0,\"\")","v":""}]
[null,"6.1  Pokončna oprema cest",null,null,{"$f":"IF(SUM(E8:E11)=0,0,\"\")","v":""}]
[null,null,null,null,{"$f":"IF(SUM(E8:E11)=0,0,\"\")","v":""}]
[null,"61 112","kos","Izdelava temelja iz cementnega betona C 12/15, globine 50 cm, premera 30 cm\n",1,null,null,null,55]
[null,"61 216","kos","Dobava in vgraditev stebrička za prometni znak iz vroče cinkane jeklene cevi s premerom 64 mm, dolge 3000 mm",1,null,null,null,23.5,null,"glede cenik znakov"]
[null,"61 641","kos","Dobava in pritrditev okroglega prometnega znaka, podloga iz aluminijaste pločevine, znak z  razredom odbojnosti RA2, A= 400 mm (2102 Stop znak)\n",1,null,null,null,40,null,"pridobil ceno glede na cenik prom.znakov za leto 2014"]
[null,"61 723","kos","Dobava in pritrditev prometnega znaka, podloga iz aluminijaste pločevine, znak z  razredom odbojnosti RA2, vrste, velikost od 0,21 do 0,40 m2 (2436-2 Parkirni prostor)\n",1,null,null,null,60,null,"pridobil ceno glede na cenik prom.znakov za leto 2014"]
[null,null,null,null,{"$f":"IF(SUM(E15:E16)=0,0,\"\")","v":""}]
[null,"6.2  Označbe na voziščih",null,null,{"$f":"IF(SUM(E15:E16)=0,0,\"\")","v":""}]
[null,null,null,null,{"$f":"IF(SUM(E15:E16)=0,0,\"\")","v":""}]
[null,"62 111","m1","Izdelava tankoslojne vzdolžne označbe na vozišču z enokomponentno belo barvo, vključno 250 g/m2 posipa z drobci / kroglicami stekla, strojno, debelina plasti suhe snovi 200 µm, širina črte 10 cm\n",2.5,null,null,null,2.4]
[null,"62 163","m2","Izdelava tankoslojne prečne in ostalih označb na vozišču z enokomponentno belo barvo, vključno 250 g/m2 posipa z drobci / kroglicami stekla, strojno, debelina plasti suhe snovi 250 µm, širina črte 50 cm (5211 Stop črta)\n",3.5,null,null,null,3.8]
[]
[null,null,null,"SKUPAJ OPREMA CEST:",null,{"$f":"IF(SUM(G8:G16)=0,\"\",SUM(G8:G16))","v":""}]

{"sheet":"7. TUJE STORITVE","index":8,"n_rows":23,"n_cols":9,"rows_kept":23,"cut":false,"hidden":false,"merged":[[17,1,17,3],[22,5,22,6],[9,1,9,3],[3,1,3,6],[5,1,5,3],[13,1,13,3]]}
[]
[null,"šifra","enota","opis dela","količina","cena","znesek",null,"TUKAJ VNESI CENE!!!"]
[]
[null,"7.   TUJE STORITVE"]
[null,null,null,null,{"$f":"IF(SUM(E8:E8)=0,0,\"\")","v":""}]
[null,"7.2  Elektroenergetski vodi",null,null,{"$f":"IF(SUM(E8:E8)=0,0,\"\")","v":""}]
[null,null,null,null,{"$f":"IF(SUM(E8:E8)=0,0,\"\")","v":""}]
[null,"72 111","m1","Zaščita elektroenergetskega voda nizke, srednje ali visoke napetosti ter razsvetljave\n",10,null,null,null,20]
[null,null,null,null,{"$f":"IF(SUM(E12:E12)=0,0,\"\")","v":""}]
[null,"7.3  Telekomunikacijske naprave",null,null,{"$f":"IF(SUM(E12:E12)=0,0,\"\")","v":""}]
[null,null,null,null,{"$f":"IF(SUM(E12:E12)=0,0,\"\")","v":""}]
[null,"73 900","m1","Zaščita vkopanega kabelskega TK in CTK voda (zaščitna cev in obbetoniranje)",10,null,null,null,30]
[null,null,null,null,{"$f":"IF(SUM(E16:E16)=0,0,\"\")","v":""}]
[null,"7.6  Vodovodi",null,null,{"$f":"IF(SUM(E16:E16)=0,0,\"\")","v":""}]
[null,null,null,null,{"$f":"IF(SUM(E16:E16)=0,0,\"\")","v":""}]
[null,"76 800","m1","Zaščita vodovoda pri križanju (zaščitna cev in obbetoniranje)",{"$f":"2*3","v":6},null,null,null,30]
[null,null,null,null,{"$f":"IF(SUM(E20:E21)=0,0,\"\")","v":""}]
[null,"7.9  Preizkusi, nadzor in tehnična dokumentacija",null,null,{"$f":"IF(SUM(E20:E21)=0,0,\"\")","v":""}]
[null,null,null,null,{"$f":"IF(SUM(E20:E21)=0,0,\"\")","v":""}]
[null,"79 311","ur","Projektantski nadzor. Obračun projektantskega nadzora se bo izvedel po dokazljivih dejanskih stroških na podlagi računa  izvajalca projektantskega nadzora.\n",20,null,null,null,52]
[null,"79 514","kos","Izdelava geodetskega posnetka in projektne dokumentacije za projekt izvedenih gradbenih del ter vris komunalnih vodov v kataster pri upravljalcih (za vse faze skupaj)",1,null,null,null,3500]
[]
[null,null,null,"SKUPAJ TUJE STORITVE:",null,{"$f":"IF(SUM(G8:G21)=0,\"\",SUM(G8:G21))","v":""}]